bitfinex-derivatives/quotes_ETHF0:USTF0_20250911
["timestamp","ask_amount","ask_price","bid_price","bid_amount"]
[1757565684963,0.3078,4417.1,4417.0,31.5]
[1757565691458,0.3078,4417.1,4417.0,31.764]
[1757565692063,0.649,4417.5,4417.4,0.6657]
[1757565692459,0.8519,4417.5,4417.4,0.6657]
[1757565692658,0.8519,4417.5,4417.4,0.4017]
[1757565695369,0.8519,4417.5,4417.4,0.6657]
[1757565695569,0.8519,4417.5,4417.4,0.4017]
[1757565697255,0.8519,4417.5,4417.4,0.6657]
[1757565698064,0.8519,4417.5,4417.4,0.4017]
[1757565699067,0.3215,4417.4,4417.3,0.98288294]
[1757565699370,0.7329,4417.4,4417.3,1.18118294]
[1757565700071,0.7329,4417.4,4417.3,0.1983]
[1757565700273,0.7329,4417.4,4417.3,1.18118294]
[1757565702058,0.7329,4417.4,4417.3,0.1983]
[1757565702264,0.7329,4417.4,4417.3,0.98288294]
[1757565702463,0.7329,4417.4,4417.3,1.18118294]
[1757565707176,0.7329,4417.4,4417.3,1.38458294]
[1757565707765,0.53,4417.4,4417.3,1.64858294]
[1757565708474,0.119,4418.0,4417.8,0.4017]
[1757565708668,0.649,4418.0,4417.9,1.64858294]
[1757565711382,0.8519,4418.0,4417.9,1.64858294]
[1757565711569,0.8519,4418.0,4417.9,1.38458294]
[1757565714679,0.399,4418.9,4417.9,1.38458294]
[1757565714680,0.17,4418.9,4417.9,1.64858294]
[1757565714878,0.649,4418.5,4418.4,1.64858294]
[1757565715375,0.8519,4418.5,4418.4,1.64858294]
[1757565715576,0.8519,4418.5,4418.4,1.38458294]
[1757565718086,0.8519,4418.5,4418.4,1.64878294]
[1757565718785,0.8519,4418.5,4418.4,1.38458294]
[1757565723489,0.8519,4418.5,4418.4,1.64878294]
[1757565724380,0.649,4418.5,4418.4,1.82799721]
[1757565725384,0.53,4418.5,4418.4,1.82799721]
[1757565725583,0.3215,4418.5,4418.4,1.82799721]
[1757565725791,0.6579,4418.5,4418.4,1.82799721]
[1757565728593,0.2967,4418.4,4418.3,31.5]
[1757565733993,0.2112,4418.1,4418.0,0.229]
[1757565734199,0.5079,4418.1,4418.0,0.6332]
[1757565734701,0.2967,4418.1,4418.0,32.1332]
[1757565735192,0.2967,4418.1,4418.0,32.3974]
[1757565736194,0.2967,4418.4,4418.0,32.1332]
[1757565736395,0.6331,4418.5,4418.4,0.6684]
[1757565739296,0.8357,4418.5,4418.4,0.6684]
[1757565741613,0.2967,4418.5,4418.4,0.6684]
[1757565742012,0.5079,4418.5,4418.4,0.6684]
[1757565743207,0.6331,4418.5,4418.4,0.6684]
[1757565745010,0.2967,4418.5,4418.4,0.6684]
[1757565746216,0.8357,4418.5,4418.4,0.4042]
[1757565746514,0.8357,4418.5,4418.4,0.6684]
[1757565751713,0.6331,4418.5,4418.4,0.6684]
[1757565753120,0.2967,4418.5,4418.4,0.6684]
[1757565754019,0.5047,4418.5,4418.4,0.6684]
[1757565754521,0.6263,4418.5,4418.4,0.6684]
[1757565758319,0.17,4418.9,4418.4,0.6684]
[1757565758622,0.17,4418.9,4418.3,1.39009721]
[1757565758623,0.8886,4418.9,4418.8,0.4052]
[1757565759316,0.8886,4418.9,4418.8,0.2109]
[1757565760023,0.5765,4418.9,4418.3,1.39009721]
[1757565760219,0.4065,4418.8,4418.7,0.2109]
[1757565760525,0.7186,4418.8,4418.7,0.2109]
[1757565766525,0.5201,4418.8,4418.7,1.83149721]
[1757565766729,0.3121,4418.8,4418.7,1.83149721]
[1757565767232,0.5201,4418.8,4418.7,1.83149721]
[1757565768131,0.7186,4418.8,4418.7,1.83149721]
[1757565768834,0.7186,4418.8,4418.7,1.56729721]
[1757565769935,0.5201,4418.8,4418.7,1.83149721]
[1757565770138,0.3121,4418.8,4418.7,2.05949721]
[1757565770938,0.5201,4418.8,4418.7,2.05949721]
[1757565773037,0.7186,4418.8,4418.7,2.05949721]
[1757565773238,0.5201,4418.8,4418.7,2.05949721]
[1757565779640,0.7186,4418.8,4418.7,1.79529721]
[1757565779940,0.7186,4418.8,4418.7,2.05969721]
[1757565782242,0.5201,4418.8,4418.7,2.05969721]
[1757565784747,0.3121,4418.8,4418.7,2.05969721]
[1757565784936,0.5267,4418.8,4418.7,2.05969721]
[1757565786240,0.5267,4418.8,4418.7,0.8976]
[1757565786438,0.7208,4418.8,4418.7,1.87888719]
[1757565787040,0.7208,4418.8,4418.7,0.8976]
[1757565787236,0.7208,4418.8,4418.7,1.87888719]
[1757565788439,0.5267,4418.8,4418.7,1.87888719]
[1757565792247,0.5267,4418.8,4418.7,0.8976]
[1757565792450,0.5267,4418.8,4418.7,1.87888719]
[1757565793349,0.5358,4418.5,4418.4,0.4419]
[1757565793541,0.8293,4418.5,4418.4,0.4419]
[1757565794249,0.8293,4418.5,4418.4,1.62828719]
[1757565794447,0.8293,4418.5,4418.4,0.647]
[1757565794649,0.8293,4418.5,4418.4,1.89268719]
[1757565796151,0.6352,4418.5,4418.4,1.89268719]
[1757565796446,0.2935,4418.5,4418.4,1.89268719]
[1757565799046,0.2935,4418.8,4418.4,1.62828719]
[1757565799251,0.6781,4418.9,4418.8,0.6834]
[1757565800447,0.8722,4418.9,4418.8,0.419]
[1757565800647,0.8722,4418.9,4418.8,0.6834]
[1757565803154,0.1266,4420.0,4419.4,0.419]
[1757565803352,0.2935,4420.0,4419.9,1.66468719]
[1757565803550,0.2935,4420.0,4419.9,33.16468719]
[1757565804041,0.2935,4420.0,4419.9,1.66468719]
[1757565804246,0.5081,4420.4,4420.3,0.419]
[1757565804446,0.7022,4420.4,4420.3,0.419]
[1757565805151,0.5081,4420.4,4420.3,1.66468719]
[1757565805951,0.7022,4420.4,4420.3,0.2139]
[1757565806348,0.7022,4420.4,4420.1,0.98128719]
[1757565806660,0.4087,4420.2,4420.1,1.19518719]
[1757565806855,0.7022,4420.2,4420.1,1.19518719]
[1757565807863,0.7022,4420.2,4420.1,1.40028719]
[1757565808460,0.7022,4420.2,4420.1,1.66388719]
[1757565808758,0.7022,4420.2,4420.1,1.40028719]
[1757565809057,0.7022,4420.2,4420.1,1.66388719]
[1757565809858,0.7022,4420.2,4420.1,1.40028719]
[1757565816162,0.7022,4420.2,4420.1,0.2139]
[1757565816368,0.1271,4421.0,4419.9,0.4396]
[1757565816369,0.5343,4420.0,4419.9,0.4396]
[1757565816564,0.8484,4420.0,4419.9,1.42088719]
[1757565816866,0.8484,4420.0,4419.9,1.62378719]
[1757565817067,0.8484,4420.0,4419.9,1.88798719]
[1757565817257,0.8484,4420.0,4419.9,1.62378719]
[1757565817864,0.8484,4420.0,4419.9,1.39578719]
[1757565822868,0.5343,4420.0,4418.7,2.03057869]
[1757565823173,0.7203,4419.3,4419.2,1.19288719]
[1757565823363,0.7203,4419.3,4419.2,1.42088719]
[1757565824267,0.4422,4419.0,4418.9,32.48128719]
[1757565824468,0.4422,4419.0,4418.9,32.70928719]
[1757565824867,0.4422,4419.0,4418.9,32.97348719]
[1757565826781,0.1281,4419.5,4419.4,0.6787]
[1757565826782,0.4422,4419.5,4419.4,0.6787]
[1757565826965,0.4422,4419.5,4419.4,1.65998719]
[1757565827166,0.6368,4419.5,4419.4,1.65998719]
[1757565828073,0.8484,4419.5,4419.4,1.65998719]
[1757565828373,0.8484,4419.5,4419.4,1.39578719]
[1757565831269,0.8484,4419.5,4419.4,0.4145]
[1757565832974,0.76057001,4419.5,4418.8,0.2642]
[1757565833167,0.5343,4419.0,4418.9,0.2116]
[1757565833666,0.8484,4419.0,4418.9,0.6787]
[1757565833868,0.8484,4419.0,4418.9,1.65998719]
[1757565834667,0.8484,4419.0,4418.9,0.4145]
[1757565834867,0.8484,4419.0,4418.8,0.228]
[1757565835078,0.5343,4419.0,4418.9,0.2116]
[1757565835278,0.8484,4419.0,4418.9,0.2116]
[1757565840278,0.8484,4419.0,4418.9,0.4172]
[1757565840682,0.8484,4419.0,4418.9,0.6806]
[1757565841869,0.1281,4420.0,4419.4,0.4067]
[1757565842073,0.5343,4420.0,4419.9,1.38798719]
[1757565842478,0.854,4420.0,4419.9,1.38798719]
[1757565844085,0.4062,4419.7,4419.6,1.18238719]
[1757565844383,0.7259,4419.7,4419.6,1.38798719]
[1757565844882,0.7259,4419.7,4419.6,0.4067]
[1757565845572,0.7259,4419.7,4419.6,1.38798719]
[1757565845780,0.7259,4419.7,4419.6,0.4067]
[1757565845978,0.7259,4419.7,4419.6,1.38798719]
[1757565847886,0.7259,4419.7,4419.6,1.65138719]
[1757565848082,0.3197,4419.6,4419.5,31.5]
[1757565849773,0.3197,4419.6,4419.5,31.7634]
[1757565853593,0.3197,4419.6,4419.5,31.9914]
[1757565853789,0.1271,4420.5,4419.9,0.6701]
[1757565853992,0.3211,4420.5,4420.4,0.6701]
[1757565854491,0.853,4420.5,4420.4,0.4067]
[1757565858492,0.853,4420.5,4420.4,0.2011]
[1757565860195,0.853,4420.5,4420.1,0.228]
[1757565861098,0.5333,4420.5,4420.1,0.4914]
[1757565861295,0.7259,4420.4,4420.3,0.2011]
[1757565868201,0.2942,4420.3,4420.0,1.16171582]
[1757565868402,0.7214,4420.3,4420.2,0.1952]
[1757565873202,0.7214,4420.3,4420.2,0.6739]
[1757565873705,0.7214,4420.3,4420.2,0.4102]
[1757565881611,0.7214,4420.3,4420.2,0.1952]
[1757565885910,0.1217,4421.5,4420.0,1.16171582]
[1757565885911,0.4272,4420.4,4420.3,0.7264]
[1757565886218,0.4272,4420.4,4420.3,0.5114]
[1757565886517,0.4272,4419.8,4418.9,2.34677869]
[1757565886712,0.4272,4418.7,4418.6,0.3162]
[1757565887014,0.4272,4418.5,4417.6,2.84527387]
[1757565887209,0.2263,4418.4,4418.1,0.5114]
[1757565887402,0.2263,4418.4,4418.3,0.3162]
[1757565887911,0.2263,4418.4,4418.1,0.3162]
[1757565888109,0.2263,4418.4,4418.0,0.1245]
[1757565888310,0.2263,4418.4,4418.1,0.3162]
[1757565888917,0.2263,4418.4,4418.0,0.4407]
[1757565889414,0.2263,4418.4,4418.1,0.3162]
[1757565890217,0.2263,4418.4,4418.0,0.1245]
[1757565890218,1.38971582,4418.3,4418.0,0.1245]
[1757565890515,0.45434,4418.3,4418.1,0.3162]
[1757565890716,0.228,4418.3,4418.1,0.3162]
[1757565893013,0.228,4418.3,4418.0,0.1245]
[1757565893416,0.228,4418.3,4418.1,0.3162]
[1757565893913,0.228,4418.3,4418.0,0.1245]
[1757565894316,0.228,4418.3,4418.1,0.3162]
[1757565897019,4.2263,4418.4,4418.1,0.3162]
[1757565897210,0.2263,4418.4,4418.3,0.7157]
[1757565897413,0.4543,4418.4,4418.3,0.7157]
[1757565898319,0.4543,4418.4,4418.3,0.5162]
[1757565898516,0.4543,4418.4,4418.3,0.305]
[1757565899923,4.4543,4418.4,4418.3,0.305]
[1757565901825,0.4543,4418.4,4418.3,0.305]
[1757565902924,0.4543,4418.4,4418.3,0.5162]
[1757565904416,4.4543,4418.4,4418.3,0.305]
[1757565905918,5.61601582,4418.4,4418.3,0.305]
[1757565907030,38.21801582,4418.4,4418.1,0.305]
[1757565907527,4.0,4418.3,4417.0,0.3357]
[1757565907829,1.16171582,4417.4,4417.0,0.3357]
[1757565908031,0.228,4417.3,4417.2,0.00339336]
[1757565909527,0.228,4417.3,4417.2,0.30839336]
[1757565910325,1.21040706,4417.3,4417.2,0.30839336]
[1757565911730,1.43670706,4417.3,4417.2,0.30839336]
[1757565911927,1.43670706,4417.3,4416.5,0.3357]
[1757565911928,0.2654,4416.6,4416.5,0.3357]
[1757565912233,1.45580706,4416.6,4416.5,0.3357]
[1757565912433,1.53870706,4416.6,4416.5,0.3357]
[1757565912830,1.53870706,4416.6,4416.5,0.1245]
[1757565913033,1.53870706,4416.6,4416.0,0.1216]
[1757565913627,0.98240706,4416.3,4416.2,0.2112]
[1757565913934,1.24780706,4416.3,4416.2,0.5162]
[1757565914733,1.33070706,4416.3,4416.2,0.305]
[1757565915135,1.33070706,4416.3,4416.2,0.5162]
[1757565915336,0.2654,4416.3,4416.2,0.7157]
[1757565915835,0.1327,4416.3,4416.2,0.7157]
[1757565916434,0.71312389,4416.3,4416.2,0.7157]
[1757565917441,0.71312389,4416.3,4416.2,0.5162]
[1757565917442,0.84582389,4416.3,4416.2,0.5162]
[1757565917626,0.92872389,4416.3,4416.2,0.305]
[1757565918230,0.84582389,4416.3,4416.2,0.5162]
[1757565919234,0.92872389,4416.3,4416.2,0.5162]
[1757565920428,0.92872389,4416.3,4416.2,0.305]
[1757565921532,0.92872389,4416.3,4416.0,0.1216]
[1757565921732,1.33070706,4416.1,4416.0,0.305]
[1757565921938,1.91087735,4416.1,4416.0,0.305]
[1757565922140,1.82797735,4416.1,4416.0,0.6378]
[1757565922341,1.82797735,4416.1,4416.0,0.8373]
[1757565923341,1.91087735,4416.1,4416.0,0.4266]
[1757565923635,1.91087735,4416.1,4415.5,0.1216]
[1757565923835,1.24780706,4415.6,4415.5,0.4266]
[1757565924034,0.80817029,4415.6,4415.5,0.8373]
[1757565925738,0.80657029,4415.6,4415.5,0.8373]
[1757565925943,1.03457029,4415.6,4415.5,0.8373]
[1757565926538,1.16727029,4415.6,4415.5,0.8373]
[1757565926939,2.28237735,4415.6,4415.5,0.8373]
[1757565927634,2.28237735,4415.6,4415.0,0.1216]
[1757565927635,0.80657029,4415.6,4415.1,0.7263]
[1757565927843,0.4932,4415.6,4415.5,0.8531]
[1757565928036,1.16772138,4415.6,4415.5,0.8531]
[1757565931939,2.15012844,4415.6,4415.5,0.8531]
[1757565933144,2.28352844,4415.6,4415.5,0.8531]
[1757565934744,2.01672844,4415.6,4415.5,0.8531]
[1757565935143,2.15012844,4415.6,4415.5,0.8531]
[1757565938352,2.28352844,4415.6,4415.5,0.8531]
[1757565939549,2.36692844,4415.6,4415.5,0.4486]
[1757565941544,2.28352844,4415.6,4415.5,0.6533]
[1757565941743,2.28352844,4415.6,4415.5,0.8531]
[1757565947252,2.13892844,4415.6,4415.5,0.4486]
[1757565947463,2.36692844,4415.6,4415.5,0.3218]
[1757565948254,0.0834,4415.5,4415.0,0.1216]
[1757565948464,1.33260706,4415.1,4415.0,0.3263]
[1757565948655,1.47720706,4415.1,4415.0,0.3263]
[1757565948851,1.47720706,4415.1,4415.0,0.6481]
[1757565949048,0.4948,4415.1,4415.0,0.6481]
[1757565949254,1.56060706,4415.1,4415.0,0.6481]
[1757565950060,2.37000852,4415.1,4415.0,0.6481]
[1757565950259,1.78700706,4415.1,4415.0,0.6481]
[1757565951157,2.05881838,4415.1,4415.0,0.8479]
[1757565951357,0.2264,4415.1,4415.0,0.8479]
[1757565951661,0.2264,4415.1,4415.0,1.0744]
[1757565951865,0.98240706,4416.1,4416.0,0.1268]
[1757565952156,1.01752447,4416.1,4416.0,0.8531]
[1757565952352,1.99993153,4416.1,4416.0,0.8531]
[1757565952552,2.19783153,4416.1,4416.0,0.8531]
[1757565952762,2.50683153,4416.1,4416.0,0.8531]
[1757565952965,2.50683153,4416.1,4416.0,0.3218]
[1757565953261,2.50683153,4416.1,4415.6,0.3218]
[1757565953462,0.2064,4415.6,4415.5,0.5313]
[1757565953661,1.01752447,4415.6,4415.5,0.5313]
[1757565954057,0.4344,4415.6,4415.5,0.8531]
[1757565954462,0.6323,4415.6,4415.5,0.8531]
[1757565956460,0.9413,4415.6,4415.5,0.8531]
[1757565956764,1.52440956,4415.6,4415.5,0.8531]
[1757565956970,1.52440956,4415.6,4415.5,0.5265]
[1757565957265,1.01750956,4415.6,4415.5,0.845]
[1757565957462,0.81110956,4415.6,4415.5,0.845]
[1757565957674,0.228,4415.6,4415.5,0.845]
[1757565958569,0.4277,4415.6,4415.5,0.845]
[1757565959668,0.228,4415.6,4415.5,0.845]
[1757565960563,0.6418,4415.6,4415.5,0.442]
[1757565960871,1.22481215,4415.6,4415.5,0.845]
[1757565961074,0.6418,4415.6,4415.5,0.845]
[1757565963971,0.9372,4415.6,4415.5,0.845]
[1757565964172,1.52016027,4415.6,4415.1,0.3085]
[1757565964470,1.69160706,4415.2,4415.1,0.5132]
[1757565965473,1.69160706,4415.2,4414.6,0.3085]
[1757565965678,1.39620706,4414.7,4414.6,0.7115]
[1757565965876,1.62420706,4414.7,4414.6,0.7115]
[1757565966075,1.91960706,4414.7,4414.6,0.7115]
[1757565968172,1.91960706,4414.7,4414.6,0.3085]
[1757565968567,1.91960706,4414.7,4414.0,0.1268]
[1757565968769,1.18210706,4414.4,4414.3,0.7115]
[1757565970383,0.1997,4414.4,4414.3,0.7115]
[1757565971678,0.7092,4414.4,4414.3,0.5132]
[1757565972172,0.17922996,4415.3,4415.0,0.403]
[1757565972173,0.1997,4415.1,4415.0,0.403]
[1757565972378,0.4277,4415.1,4415.0,0.8317]
[1757565972981,0.78228776,4415.1,4415.0,0.8317]
[1757565973180,1.01028776,4415.1,4415.0,0.8317]
[1757565974682,1.51978776,4415.1,4415.0,0.6334]
[1757565974983,1.51978776,4415.1,4415.0,0.3085]
[1757565975385,1.51978776,4415.1,4414.6,0.3085]
[1757565975586,0.1997,4414.6,4414.5,0.8317]
[1757565975784,0.7092,4414.6,4414.5,0.8317]
[1757565977190,0.4138,4414.6,4414.5,0.8317]
[1757565982096,0.2264,4415.4,4415.1,0.7115]
[1757565982300,0.2264,4415.4,4415.2,0.7115]
[1757565982301,0.81108968,4415.3,4415.2,0.7115]
[1757565982595,1.01078968,4415.3,4415.2,0.7115]
[1757565983388,0.4277,4415.3,4415.2,0.7115]
[1757565984395,0.2264,4415.4,4415.2,0.7115]
[1757565984600,0.228,4415.3,4415.2,0.7115]
[1757565984800,0.4544,4415.4,4415.3,0.7115]
[1757565984991,0.228,4415.4,4415.3,0.7115]
[1757565985493,1.16471608,4416.0,4415.5,0.1202]
[1757565985702,1.57851608,4416.0,4415.9,0.7115]
[1757565985995,2.38966508,4416.0,4415.9,0.7115]
[1757565986498,2.68506508,4416.0,4415.9,0.7115]
[1757565986997,2.45706508,4416.0,4415.9,0.7115]
[1757565987192,2.38966508,4416.0,4415.9,0.7115]
[1757565988288,2.69956508,4416.0,4415.9,0.7115]
[1757565988493,2.69956508,4416.0,4415.9,0.3085]
[1757565989601,2.69956508,4416.0,4415.6,0.3224]
[1757565989897,0.7172,4415.2,4415.1,0.5255]
[1757565990200,2.10991608,4415.2,4415.1,0.5255]
[1757565995408,2.69355842,4415.2,4415.1,0.5255]
[1757565995701,2.69355842,4415.2,4414.6,0.3224]
[1757565995906,2.10991608,4415.2,4414.6,0.3224]
[1757565997001,2.10991608,4415.2,4415.1,0.2031]
[1757565997203,2.69355838,4415.2,4415.1,0.5255]
[1757565997395,2.69355838,4415.2,4415.1,0.7352]
[1757565997700,2.69355838,4415.2,4415.1,0.3224]
[1757565998298,2.69355838,4415.2,4414.6,0.3224]
[1757565998601,1.88191608,4414.7,4414.6,0.5255]
[1757565998799,2.10991608,4414.7,4414.6,0.5255]
[1757565999702,1.57201608,4414.7,4414.6,0.7352]
[1757565999898,0.6353,4414.7,4414.6,0.7352]
[1757566000097,0.9452,4414.7,4414.6,0.7352]
[1757566000301,2.10991608,4414.7,4414.6,0.7352]
[1757566000804,0.9452,4414.7,4414.6,0.7352]
[1757566002005,0.6353,4414.7,4414.6,0.7352]
[1757566002605,0.9452,4414.7,4414.6,0.7352]
[1757566002906,0.9452,4414.7,4414.6,0.5255]
[1757566003104,2.69353856,4414.7,4414.6,0.5255]
[1757566004410,2.69353856,4414.7,4414.6,0.3224]
[1757566005213,2.69353856,4414.7,4414.0,0.1268]
[1757566005413,1.88191608,4414.2,4414.1,0.5255]
[1757566005613,2.10991608,4414.2,4414.1,0.7352]
[1757566005908,0.1956,4414.6,4414.5,0.8614]
[1757566006210,0.4246,4414.6,4414.5,0.8614]
[1757566006409,1.00796343,4414.6,4414.5,0.8614]
[1757566006810,0.77896343,4414.6,4414.5,0.8614]
[1757566007012,0.229,4414.6,4414.5,0.8614]
[1757566013617,0.2265,4414.8,4414.5,0.8614]
[1757566013823,0.228,4414.7,4414.6,0.3224]
[1757566014024,0.228,4414.7,4414.6,0.7352]
[1757566015824,0.2265,4414.8,4414.7,0.3224]
[1757566016018,0.4545,4414.8,4414.7,0.7352]
[1757566017418,0.6689,4414.8,4414.7,0.7352]
[1757566017923,1.1736,4414.8,4414.7,0.7352]
[1757566020218,0.4545,4414.8,4414.7,0.7352]
[1757566024025,0.2265,4414.8,4414.7,4.96171]
[1757566024221,0.228,4415.5,4415.4,0.3968]
[1757566024420,0.228,4415.5,4415.4,0.7128]
[1757566027834,32.9353,4415.9,4415.5,0.1229]
[1757566028137,0.4424,4415.8,4415.7,0.7128]
[1757566030636,0.7507,4415.8,4415.7,0.7128]
[1757566032538,1.93010735,4415.8,4415.7,0.7128]
[1757566034531,1.93010735,4415.8,4415.1,0.316]
[1757566034725,0.4108,4414.9,4414.8,0.1954]
[1757566034931,1.62180735,4414.9,4414.8,0.5114]
[1757566035132,1.93010735,4414.9,4414.8,0.5114]
[1757566035942,1.93010735,4414.9,4414.1,0.316]
[1757566036131,1.93010735,4414.9,4414.1,0.7128]
[1757566036132,1.70210735,4414.2,4414.1,0.7128]
[1757566036331,1.93010735,4414.2,4414.1,0.7128]
[1757566041141,1.93010735,4414.2,4414.1,0.1954]
[1757566041342,1.93010735,4414.2,4414.1,0.5114]
[1757566041643,1.93010735,4414.2,4414.1,0.7128]
[1757566041942,1.62180735,4414.2,4414.1,0.7128]
[1757566042239,1.93010735,4414.2,4414.1,0.7128]
[1757566043443,0.6388,4414.2,4414.1,0.7128]
[1757566043742,0.4424,4414.2,4414.1,0.7128]
[1757566044331,0.228,4414.4,4414.3,0.3968]
[1757566044538,0.228,4414.4,4414.3,0.7128]
[1757566046335,1.29130735,4414.8,4414.3,0.3968]
[1757566046540,1.39380735,4415.1,4415.0,0.8357]
[1757566046743,1.93010735,4415.1,4414.5,0.1229]
[1757566047043,1.70210735,4414.6,4414.5,0.8357]
[1757566047839,1.39380735,4414.6,4414.5,0.8357]
[1757566049347,0.7202,4414.6,4414.5,0.8357]
[1757566049743,0.4108,4414.6,4414.5,0.8357]
[1757566051148,0.2144,4414.6,4414.5,0.8357]
[1757566060155,0.7297,4414.6,4414.5,0.7128]
[1757566065665,0.7297,4414.6,4414.5,0.5114]
[1757566068066,0.7297,4414.6,4414.5,0.316]
[1757566068365,1.31385852,4414.6,4414.5,0.316]
[1757566069170,0.1221,4414.5,4414.1,0.2966]
[1757566069466,0.7182,4414.2,4414.1,0.7102]
[1757566072066,1.70120735,4414.2,4414.1,0.7102]
[1757566072971,0.7182,4414.2,4414.1,0.7102]
[1757566073170,1.70120735,4414.2,4414.1,0.7102]
[1757566080174,0.7182,4414.2,4414.1,0.7102]
[1757566084680,0.2029,4414.2,4414.1,0.7102]
[1757566084977,0.228,4415.1,4414.7,0.3041]
[1757566085180,0.228,4415.1,4415.0,0.5352]
[1757566085483,0.4312,4415.1,4415.0,0.8393]
[1757566086885,0.741,4415.1,4415.0,0.8393]
[1757566087181,0.9511,4415.1,4415.0,0.8393]
[1757566089581,0.4312,4415.1,4415.0,0.8393]
[1757566089982,0.741,4415.1,4415.0,0.8393]
[1757566090887,0.9511,4415.1,4415.0,0.7121]
[1757566091580,1.93410735,4415.1,4415.0,0.7121]
[1757566092289,0.9511,4415.1,4415.0,0.7121]
[1757566098389,0.4133,4414.6,4414.5,0.2078]
[1757566098588,1.16441863,4414.8,4414.5,0.5352]
[1757566098789,0.228,4414.8,4414.5,0.5352]
[1757566098993,0.3098,4414.7,4414.6,0.7121]
[1757566099196,0.513,4414.7,4414.6,0.7121]
[1757566099492,0.3098,4415.0,4414.6,0.7121]
[1757566099693,1.16441863,4415.1,4414.8,0.408]
[1757566099994,0.741,4415.0,4414.9,0.7121]
[1757566101098,0.9511,4415.0,4414.9,0.7121]
[1757566101303,1.1776,4415.0,4414.9,0.7121]
[1757566101602,1.1776,4415.0,4414.9,0.5119]
[1757566101802,1.1776,4415.0,4414.5,0.1272]
[1757566101803,1.2975,4415.0,4414.6,0.3041]
[1757566102103,1.88751863,4414.7,4414.6,0.3041]
[1757566102401,1.88751863,4414.7,4414.6,0.5119]
[1757566107003,1.88751863,4414.7,4414.1,0.3041]
[1757566107203,1.57771863,4414.7,4414.1,0.22652999]
[1757566107504,0.501,4414.2,4414.1,0.7296]
[1757566109405,0.207,4414.2,4414.1,0.7296]
[1757566110007,0.228,4414.5,4414.4,0.4084]
[1757566110305,0.435,4414.5,4414.4,0.7296]
[1757566110699,0.2265,4415.0,4414.4,0.4084]
[1757566110903,0.2265,4415.0,4414.9,0.7296]
[1757566110904,0.9413,4415.0,4414.9,0.7296]
[1757566111106,1.1693,4415.0,4414.9,0.7296]
[1757566114311,1.75397208,4415.0,4414.9,0.7296]
[1757566117107,1.75397208,4415.0,4414.9,0.5353]
[1757566117813,1.88197208,4415.0,4414.1,0.3212]
[1757566118110,0.7148,4414.2,4414.1,0.7296]
[1757566119208,0.294,4414.7,4414.2,0.3212]
[1757566119407,0.501,4414.7,4414.6,0.5031]
[1757566119608,0.501,4414.7,4414.6,0.7172]
[1757566119808,0.356,4415.0,4414.6,0.7172]
[1757566120014,0.356,4415.0,4414.5,0.1168]
[1757566120015,0.7148,4414.8,4414.7,0.7296]
[1757566121310,0.9428,4414.8,4414.7,0.7296]
[1757566122613,2.10721863,4414.8,4414.0,0.1229]
[1757566122812,2.10721863,4414.8,4414.1,0.3212]
[1757566125916,1.16441863,4414.4,4414.1,0.3212]
[1757566126112,0.4208,4413.7,4413.6,2.41986647]
[1757566126312,1.87921863,4413.7,4413.6,0.4084]
[1757566127414,1.87921863,4413.7,4413.6,0.2141]
[1757566127813,1.87921863,4413.7,4412.8,0.1722243]
[1757566128014,1.87921863,4413.7,4412.9,0.22658999]
[1757566128409,0.5488,4413.5,4413.4,0.049]
[1757566128609,0.8428,4413.5,4413.4,0.049]
[1757566130923,0.8428,4413.5,4412.8,0.2028243]
[1757566131218,0.422,4413.0,4412.9,0.3246]
[1757566131623,0.629,4413.0,4412.9,0.3246]
[1757566131819,0.629,4413.0,4412.9,0.098]
[1757566133924,0.8428,4413.0,4412.9,0.098]
[1757566135015,0.8428,4413.0,4412.8,0.1722243]
[1757566136717,1.87921863,4412.9,4412.8,0.1722243]
[1757566140324,0.7148,4412.9,4412.8,0.1722243]
[1757566143232,0.7148,4412.9,4412.8,2.43e-05]
[1757566149036,4.7148,4412.9,4412.8,2.43e-05]
[1757566149226,4.9428,4412.9,4412.8,2.43e-05]
[1757566149436,5.16941,4412.9,4412.8,2.43e-05]
[1757566149828,4.9428,4412.9,4412.8,2.43e-05]
[1757566150432,0.9428,4412.9,4412.8,2.43e-05]
[1757566153334,0.7148,4412.9,4412.8,2.43e-05]
[1757566153540,0.9428,4412.9,4412.8,2.43e-05]
[1757566154435,1.92733395,4412.9,4412.8,2.43e-05]
[1757566154932,1.92733395,4412.9,4411.4,0.1998]
[1757566154933,0.8302,4411.5,4411.4,0.1998]
[1757566155139,0.8302,4411.5,4411.4,0.4121]
[1757566156226,0.294,4411.8,4411.5,0.2028]
[1757566156432,0.294,4411.8,4411.4,0.4121]
[1757566156433,0.294,4411.8,4411.7,0.6149]
[1757566156632,0.4967,4411.8,4411.7,0.6149]
[1757566156942,0.7054,4411.8,4411.7,0.4121]
[1757566158537,0.7054,4411.8,4411.7,0.1998]
[1757566159140,0.7054,4411.8,4411.7,0.4121]
[1757566160339,0.7054,4411.8,4411.7,0.1998]
[1757566161745,0.4114,4411.8,4411.2,1.18733395]
[1757566161941,0.00339728,4411.9,4411.2,1.18733395]
[1757566162138,0.8302,4411.5,4411.4,0.1998]
[1757566162745,0.8302,4411.5,4411.4,0.4121]
[1757566163846,0.8302,4411.5,4411.4,0.6149]
[1757566164842,0.6215,4411.5,4411.4,0.6149]
[1757566165240,0.00339728,4411.9,4411.4,0.6149]
[1757566165241,0.00339728,4411.9,4411.7,0.6149]
[1757566165439,0.29739728,4411.9,4411.8,0.6149]
[1757566166533,0.00339728,4411.9,4411.8,4.6149]
[1757566170348,0.00339728,4411.9,4411.8,5.59943395]
[1757566173147,0.4463,4412.5,4412.4,0.4029]
[1757566173449,0.4463,4412.5,4412.4,0.6057]